fUST/lending_fUST_20250911
["ID","MTS","AMOUNT","RATE_DAILY","PERIOD"]
[384811349,1757568642452,-480.0,0.00013898,2]
[384811350,1757568642462,-480.0,0.00013898,2]
[384811351,1757568642471,-480.0,0.00013898,2]
[384811352,1757568642481,-480.0,0.00013898,2]
[384811353,1757568642491,-480.0,0.00013898,2]
[384811354,1757568642501,-480.0,0.00013898,2]
[384811355,1757568642596,-480.0,0.00013898,2]
[384811356,1757568642606,-1282.08,0.00013898,2]
[384811357,1757568642615,-480.0,0.00013898,2]
[384811358,1757568642626,-480.0,0.00013898,2]
[384811359,1757568642635,-480.0,0.00013898,2]
[384811360,1757568642645,-151.0,0.00013898,2]
[384811361,1757568642655,-161.329495,0.00013898,2]
[384811362,1757568642664,-315.989665,0.00013898,2]
[384811363,1757568642674,-315.989665,0.00013898,2]
[384811364,1757568642683,-315.989665,0.00013898,2]
[384811365,1757568642692,-315.989665,0.00013898,2]
[384811366,1757568642701,-151.0,0.00013898,2]
[384811367,1757568642710,-151.0,0.00013898,2]
[384811368,1757568642719,-155.133032,0.00013898,2]
[384811369,1757568642728,-1016.183019,0.00013898,2]
[384811370,1757568642737,-1016.183019,0.00013898,2]
[384811371,1757568642746,-1016.183019,0.00013898,2]
[384811372,1757568642755,-1016.183019,0.00013898,2]
[384811373,1757568642765,-224.58385,0.00013898,2]
[384811374,1757568642773,-176.583283,0.00013898,2]
[384811375,1757568642783,-224.58385,0.00013898,2]
[384811376,1757568642792,-224.58385,0.00013898,2]
[384811377,1757568642801,-152.244348,0.00013898,2]
[384811378,1757568642810,-224.58385,0.00013898,2]
[384811379,1757568642820,-151.0,0.00013898,2]
[384811380,1757568642829,-151.0,0.00013898,2]
[384811381,1757568642839,-151.0,0.00013898,2]
[384811382,1757568642849,-151.0,0.00013898,2]
[384811383,1757568642858,-151.0,0.00013898,2]
[384811384,1757568642867,-178.23891,0.00013898,2]
[384811385,1757568642877,-178.23891,0.00013898,2]
[384811386,1757568642886,-178.23891,0.00013898,2]
[384811387,1757568642896,-178.23891,0.00013898,2]
[384811388,1757568642905,-151.0,0.00013898,2]
[384811389,1757568642914,-151.0,0.00013898,2]
[384811390,1757568642923,-973.422043,0.00013898,2]
[384811391,1757568642932,-973.422043,0.00013898,2]
[384811392,1757568642941,-973.422043,0.00013898,2]
[384811393,1757568642950,-973.422043,0.00013898,2]
[384811394,1757568642961,-151.0,0.00013898,2]
[384811395,1757568642976,-151.0,0.00013898,2]
[384811396,1757568642986,-151.0,0.00013898,2]
[384811397,1757568642995,-151.0,0.00013898,2]
[384811398,1757568643005,-151.0,0.00013898,2]
[384811399,1757568643015,-151.0,0.00013898,2]
[384811400,1757568643024,-151.0,0.00013898,2]
[384811401,1757568643033,-151.0,0.00013898,2]
[384811402,1757568643042,-151.0,0.00013898,2]
[384811403,1757568643051,-151.0,0.00013898,2]
[384811404,1757568643061,-151.0,0.00013898,2]
[384811406,1757568643070,-179.668161,0.00013898,2]
[384811407,1757568643080,-179.668161,0.00013898,2]
[384811408,1757568643089,-179.668161,0.00013898,2]
[384811409,1757568643099,-179.668161,0.00013898,2]
[384811410,1757568643109,-601.606064,0.00013898,2]
[384811411,1757568643118,-601.606064,0.00013898,2]
[384811412,1757568643128,-601.606064,0.00013898,2]
[384811413,1757568643137,-601.606064,0.00013898,2]
[384811414,1757568643149,-151.0,0.00013898,2]
[384811415,1757568643159,-151.0,0.00013898,2]
[384811416,1757568643169,-182.576563,0.00013898,2]
[384811417,1757568643178,-151.0,0.00013898,2]
[384811418,1757568643187,-151.0,0.00013898,2]
[384811419,1757568643197,-298.227995,0.00013898,2]
[384811420,1757568643206,-298.227995,0.00013898,2]
[384811421,1757568643216,-298.227995,0.00013898,2]
[384811422,1757568643225,-298.227995,0.00013898,2]
[384811423,1757568643234,-151.0,0.00013898,2]
[384811424,1757568643244,-243.506589,0.00013898,2]
[384811425,1757568643253,-193.206233,0.00013898,2]
[384811426,1757568643262,-193.206233,0.00013898,2]
[384811427,1757568643271,-193.206233,0.00013898,2]
[384811428,1757568643280,-193.206233,0.00013898,2]
[384811429,1757568643289,-480.0,0.00013899,2]
[384811430,1757568643299,-501.94753272,0.00013899,2]
[384811431,1757568643309,-493.76983309,0.00013899,2]
[384811432,1757568643318,-484.96950444,0.00013899,2]
[384811433,1757568643327,-489.10435213,0.00013899,2]
[384811434,1757568643336,-480.0,0.00013899,2]
[384811436,1757568643345,-485.50606116,0.00013899,2]
[384811437,1757568643354,-487.27569081,0.00013899,2]
[384811439,1757568643363,-480.0,0.00013899,2]
[384811441,1757568643372,-485.41598258,0.00013899,2]
[384811443,1757568643382,-480.0,0.00013899,2]
[384811444,1757568643391,-483.97696407,0.00013899,2]
[384811445,1757568643400,-480.0,0.00013899,2]
[384811446,1757568643409,-480.0,0.00013899,2]
[384811447,1757568643419,-480.0,0.00013899,2]
[384811448,1757568643428,-482.41737153,0.00013899,2]
[384811449,1757568643437,-480.0,0.00013899,2]
[384811450,1757568643446,-480.0,0.00013899,2]
[384811451,1757568643455,-480.0,0.00013899,2]
[384811452,1757568643464,-480.0,0.00013899,2]
[384811453,1757568643473,-480.0,0.00013899,2]
[384811454,1757568643482,-463.34132093,0.00013899,2]
[384811455,1757568643493,-484.07484969,0.00013899,2]
[384811456,1757568643502,-480.0,0.00013899,2]
[384811457,1757568643511,-480.0,0.00013899,2]
[384811458,1757568643520,-480.0,0.00013899,2]
[384811459,1757568643530,-480.0,0.00013899,2]
[384811460,1757568643539,-480.0,0.00013899,2]
[384811461,1757568643548,-492.10039664,0.00013899,2]
[384811463,1757568643557,-485.48442838,0.00013899,2]
[384811465,1757568643567,-480.0,0.00013899,2]
[384811467,1757568643576,-480.0,0.00013899,2]
[384811469,1757568643588,-486.82586398,0.00013899,2]
[384811471,1757568643597,-480.0,0.00013899,2]
[384811473,1757568643606,-482.01344972,0.00013899,2]
[384811475,1757568643615,-480.0,0.00013899,2]
[384811477,1757568643625,-480.0,0.00013899,2]
[384811479,1757568643634,-480.0,0.00013899,2]
[384811481,1757568643643,-480.0,0.00013899,2]
[384811484,1757568643652,-485.05053238,0.00013899,2]
[384811485,1757568643661,-480.0,0.00013899,2]
[384811487,1757568643671,-484.30924653,0.00013899,2]
[384811489,1757568643680,-482.87638284,0.00013899,2]
[384811492,1757568643689,-480.0,0.00013899,2]
[384811493,1757568643698,-480.0,0.00013899,2]
[384811495,1757568643708,-482.55745651,0.00013899,2]
[384811498,1757568643717,-480.0,0.00013899,2]
[384811499,1757568643726,-480.0,0.00013899,2]
[384811501,1757568643735,-571.46328339,0.00013899,2]
[384811503,1757568643746,-480.0,0.00013899,2]
[384811505,1757568643756,-480.0,0.00013899,2]
[384811507,1757568643766,-480.0,0.00013899,2]
[384811509,1757568643775,-151.0,0.00013899,2]
[384811511,1757568643784,-151.0,0.00013899,2]
[384811513,1757568643793,-480.0,0.00013899,2]
[384811515,1757568643802,-480.0,0.00013899,2]
[384811517,1757568643811,-154.885418,0.00013899,2]
[384811519,1757568643821,-480.0,0.00013899,2]
[384811521,1757568643830,-200.35332702,0.00013899,2]
[384811523,1757568643839,-528.1763254,0.00013899,2]
[384811525,1757568643848,-480.0,0.00013899,2]
[384811527,1757568643859,-480.0,0.00013899,2]
[384811529,1757568643868,-480.0,0.00013899,2]
[384811532,1757568643878,-480.0,0.00013899,2]
[384811533,1757568643887,-470.95757988,0.00013899,2]
[384811536,1757568643897,-480.0,0.00013899,2]
[384811538,1757568643907,-480.0,0.00013899,2]
[384811540,1757568643916,-315.989665,0.00013899,2]
[384811541,1757568643925,-315.989665,0.00013899,2]
[384811543,1757568643934,-315.989665,0.00013899,2]
[384811545,1757568643943,-315.989665,0.00013899,2]
[384811548,1757568643953,-480.0,0.00013899,2]
[384811549,1757568643962,-480.0,0.00013899,2]
[384811551,1757568643971,-481.45695243,0.00013899,2]
[384811553,1757568643980,-481.11161949,0.00013899,2]
[384811555,1757568643990,-486.18744722,0.00013899,2]
[384811557,1757568643999,-480.0,0.00013899,2]
[384811559,1757568644009,-480.0,0.00013899,2]
[384811561,1757568644018,-151.0,0.00013899,2]
[384811563,1757568644026,-151.0,0.00013899,2]
[384811565,1757568644035,-480.0,0.00013899,2]
[384811567,1757568644044,-480.0,0.00013899,2]
[384811569,1757568644054,-480.0,0.00013899,2]
[384811571,1757568644063,-480.0,0.00013899,2]
[384811573,1757568644072,-480.0,0.00013899,2]
[384811575,1757568644082,-480.0,0.00013899,2]
[384811577,1757568644090,-480.0,0.00013899,2]
[384811579,1757568644100,-480.0,0.00013899,2]
[384811581,1757568644109,-480.0,0.00013899,2]
[384811583,1757568644118,-480.0,0.00013899,2]
[384811585,1757568644128,-481.51314461,0.00013899,2]
[384811587,1757568644137,-1016.183019,0.00013899,2]
[384811589,1757568644147,-1016.183019,0.00013899,2]
[384811591,1757568644156,-1016.183019,0.00013899,2]
[384811593,1757568644166,-1016.183019,0.00013899,2]
[384811595,1757568644175,-224.58385,0.00013899,2]
[384811597,1757568644185,-224.58385,0.00013899,2]
[384811599,1757568644194,-224.58385,0.00013899,2]
[384811601,1757568644204,-224.58385,0.00013899,2]
[384811603,1757568644214,-151.0,0.00013899,2]
[384811605,1757568644223,-480.0,0.00013899,2]
[384811607,1757568644232,-151.0,0.00013899,2]
[384811609,1757568644242,-151.0,0.00013899,2]
[384811611,1757568644251,-480.0,0.00013899,2]
[384811613,1757568644261,-480.0,0.00013899,2]
[384811615,1757568644270,-151.0,0.00013899,2]
[384811617,1757568644279,-151.0,0.00013899,2]
[384811619,1757568644290,-482.59501984,0.00013899,2]
[384811621,1757568644299,-151.0,0.00013899,2]
[384811623,1757568644308,-151.0,0.00013899,2]
[384811625,1757568644317,-480.0,0.00013899,2]
[384811627,1757568644326,-480.0,0.00013899,2]
[384811629,1757568644335,-178.23891,0.00013899,2]
[384811631,1757568644344,-178.23891,0.00013899,2]
[384811633,1757568644353,-178.23891,0.00013899,2]
[384811635,1757568644362,-178.23891,0.00013899,2]
[384811637,1757568644371,-178.23891,0.00013899,2]
[384811639,1757568644380,-178.23891,0.00013899,2]
[384811641,1757568644389,-178.23891,0.00013899,2]
[384811643,1757568644398,-178.23890684,0.00013899,2]
[384811645,1757568644407,-151.0,0.00013899,2]
[384811647,1757568644416,-151.0,0.00013899,2]
[384811649,1757568644425,-203.469089,0.00013899,2]
[384811650,1757568644434,-973.422043,0.00013899,2]
[384811653,1757568644443,-973.422043,0.00013899,2]
[384811655,1757568644453,-973.422043,0.00013899,2]
[384811657,1757568644462,-973.422043,0.00013899,2]
[384811659,1757568644471,-973.422043,0.00013899,2]
[384811660,1757568644480,-973.422043,0.00013899,2]
[384811671,1757568644489,-973.422043,0.00013899,2]
[384811674,1757568644582,-973.422036,0.00013899,2]
[384811676,1757568644592,-151.0,0.00013899,2]
[384811678,1757568644601,-151.0,0.00013899,2]
[384811680,1757568644609,-151.0,0.00013899,2]
[384811681,1757568644618,-151.0,0.00013899,2]
[384811683,1757568644628,-151.0,0.00013899,2]
[384811685,1757568644637,-151.0,0.00013899,2]
[384811687,1757568644646,-151.0,0.00013899,2]
[384811689,1757568644656,-151.0,0.00013899,2]
[384811692,1757568644666,-151.0,0.00013899,2]
[384811693,1757568644675,-151.0,0.00013899,2]
[384811696,1757568644684,-154.891002,0.00013899,2]
[384811697,1757568644694,-179.668161,0.00013899,2]
[384811699,1757568644703,-179.668161,0.00013899,2]
[384811701,1757568644712,-179.668161,0.00013899,2]
[384811704,1757568644721,-179.668161,0.00013899,2]
[384811706,1757568644731,-601.606064,0.00013899,2]
[384811708,1757568644740,-601.606064,0.00013899,2]
[384811710,1757568644749,-601.606064,0.00013899,2]
[384811712,1757568644758,-601.606064,0.00013899,2]
[384811714,1757568644767,-151.0,0.00013899,2]
[384811716,1757568644776,-151.0,0.00013899,2]
[384811717,1757568644785,-151.0,0.00013899,2]
[384811720,1757568644794,-156.347129,0.00013899,2]
[384811722,1757568644803,-298.227995,0.00013899,2]
[384811724,1757568644813,-298.227995,0.00013899,2]
[384811726,1757568644823,-298.227995,0.00013899,2]
[384811727,1757568644832,-298.227995,0.00013899,2]
[384811729,1757568644841,-212.813934,0.00013899,2]
[384811731,1757568644851,-193.206233,0.00013899,2]
[384811733,1757568644860,-193.206233,0.00013899,2]
[384811735,1757568644869,-193.206233,0.00013899,2]
[384811737,1757568644878,-193.206233,0.00013899,2]
[384811739,1757568644888,-168.0,0.00013899,2]
[384811741,1757568644898,-2183.31810187,0.00013906,2]
[384811743,1757568644907,-151.0,0.00013906,2]
[384811744,1757568644916,-151.0,0.00013906,2]
[384811745,1757568644926,-151.0,0.00013906,2]
[384811746,1757568644935,-151.0,0.00013906,2]
[384811747,1757568644945,-151.0,0.00013906,2]
[384811748,1757568644954,-192.894118,0.00013906,2]
[384811749,1757568644963,-151.0,0.00013906,2]
[384811750,1757568644973,-151.0,0.00013906,2]
[384811751,1757568644981,-151.0,0.00013906,2]
[384811752,1757568644991,-151.0,0.00013906,2]
[384811753,1757568645000,-179.668161,0.00013906,2]
[384811754,1757568645009,-179.668161,0.00013906,2]
[384811755,1757568645018,-179.668161,0.00013906,2]
[384811756,1757568645028,-179.668156,0.00013906,2]
[384811757,1757568645037,-601.606064,0.00013906,2]
[384811758,1757568645046,-601.606064,0.00013906,2]
[384811759,1757568645055,-601.606064,0.00013906,2]
[384811760,1757568645064,-601.606056,0.00013906,2]
[384811761,1757568645074,-151.0,0.00013906,2]
[384811762,1757568645083,-151.0,0.00013906,2]
[384811763,1757568645092,-151.0,0.00013906,2]
[384811764,1757568645102,-10979.0142119,0.00013913,2]
[384811765,1757568645111,-7308.8155064,0.00013913,2]
[384811766,1757568645121,-1016.183019,0.00013913,2]
[384811767,1757568645131,-1016.183019,0.00013913,2]
[384811768,1757568645141,-1016.183019,0.00013913,2]
[384811769,1757568645151,-1016.18301051,0.00013913,2]
[384811770,1757568645160,-224.58385,0.00013913,2]
[384811771,1757568645169,-224.58385,0.00013913,2]
[384811772,1757568645179,-224.58385,0.00013913,2]
[384811773,1757568645188,-224.58385,0.00013913,2]
[384811774,1757568645197,-151.0,0.00013913,2]
[384811775,1757568645206,-151.0,0.00013913,2]
[384811776,1757568645215,-216.801491,0.00013913,2]
[384811777,1757568645224,-298.227995,0.00013913,2]
[384811778,1757568645234,-298.227995,0.00013913,2]
[384811780,1757568645244,-298.227995,0.00013913,2]
[384811781,1757568645254,-298.227996,0.00013913,2]
[384811782,1757568645263,-193.206233,0.00013913,2]
[384811784,1757568645273,-193.206233,0.00013913,2]
[384811786,1757568645281,-193.206233,0.00013913,2]
[384811788,1757568645290,-193.206225,0.00013913,2]
[384811790,1757568645299,-545.27,0.0001392,2]
[384811792,1757568645308,-530.95967032,0.00013926,2]
[384811794,1757568645317,-417.15472785,0.00013927,2]
[384811796,1757568645326,-233.10680167,0.00013927,2]
[384811798,1757568645336,-846.96613202,0.00013927,2]
[384811800,1757568645344,-217.69300629,0.00013927,2]
[384811802,1757568645353,-160.0,0.00013928,2]
[384811804,1757568645362,-160.0,0.00013928,2]
[384811806,1757568645371,-160.0,0.00013928,2]
[384811808,1757568645380,-160.0,0.00013928,2]
[384811810,1757568645389,-160.0,0.00013928,2]
[384811812,1757568645399,-2237.20831053,0.00013961,2]
[384811814,1757568645408,-237.095731,0.00013971,2]
[384811816,1757568645417,-697.797589,0.00013971,2]
[384811819,1757568645426,-1532.48666018,0.0001399,2]
[384811820,1757568645435,-151.0,0.0001399,2]
[384811822,1757568645444,-161.823539,0.0001399,2]
[384811825,1757568645454,-151.0,0.0001399,2]
[384811826,1757568645463,-151.0,0.0001399,2]
[384811828,1757568645472,-480.0,0.00014069,2]
[384811830,1757568645481,-480.0,0.00014069,2]
[384811832,1757568645490,-480.0,0.00014069,2]
[384811834,1757568645499,-480.0,0.00014069,2]
[384811836,1757568645509,-480.0,0.00014069,2]
[384811839,1757568645518,-480.0,0.00014069,2]
[384811840,1757568645527,-482.31260379,0.00014069,2]
[384811842,1757568645536,-480.0,0.00014069,2]
[384811844,1757568645546,-480.0,0.00014069,2]
[384811847,1757568645555,-315.989665,0.00014069,2]
[384811849,1757568645564,-315.989665,0.00014069,2]
[384811850,1757568645574,-315.989665,0.00014069,2]
[384811852,1757568645588,-315.989665,0.00014069,2]
[384811855,1757568645599,-480.0,0.00014069,2]
[384811857,1757568645608,-480.0,0.00014069,2]
[384811859,1757568645619,-480.0,0.00014069,2]
[384811861,1757568645628,-480.0,0.00014069,2]
[384811863,1757568645638,-329.65856322,0.00014069,2]
[384811865,1757568645648,-480.0,0.00014069,2]
[384811867,1757568645658,-480.0,0.00014069,2]
[384811869,1757568645668,-480.0,0.00014069,2]
[384811871,1757568645677,-480.0,0.00014069,2]
[384811873,1757568645687,-480.0,0.00014069,2]
[384811875,1757568645696,-480.0,0.00014069,2]
[384811877,1757568645705,-480.0,0.00014069,2]
[384811879,1757568645713,-480.0,0.00014069,2]
[384811881,1757568645723,-480.0,0.00014069,2]
[384811883,1757568645732,-480.0,0.00014069,2]
[384811885,1757568645741,-480.0,0.00014069,2]
[384811887,1757568645750,-480.0,0.00014069,2]
[384811889,1757568645759,-480.0,0.00014069,2]
[384811891,1757568645768,-480.0,0.00014069,2]
[384811893,1757568645777,-2967.6,0.00014069,2]
[384811895,1757568645787,-480.0,0.00014069,2]
[384811897,1757568645795,-480.0,0.00014069,2]
[384811899,1757568645806,-480.0,0.00014069,2]
[384811901,1757568645815,-480.0,0.00014069,2]
[384811902,1757568645824,-480.0,0.00014069,2]
[384811904,1757568645833,-480.0,0.00014069,2]
[384811906,1757568645842,-480.0,0.00014069,2]
[384811908,1757568645851,-796.52,0.00014069,2]
[384811910,1757568645860,-480.0,0.00014069,2]
[384811912,1757568645869,-480.0,0.00014069,2]
[384811914,1757568645878,-480.0,0.00014069,2]
[384811916,1757568645888,-480.0,0.00014069,2]
[384811918,1757568645897,-480.0,0.00014069,2]
[384811920,1757568645906,-480.0,0.00014069,2]
[384811922,1757568645915,-555.6,0.00014069,2]
[384811924,1757568645924,-480.0,0.00014069,2]
[384811926,1757568645933,-480.0,0.00014069,2]
[384811928,1757568645943,-480.0,0.00014069,2]
[384811930,1757568645951,-480.0,0.00014069,2]
[384811932,1757568645961,-486.55230207,0.00014069,2]
[384811934,1757568645970,-480.0,0.00014069,2]
[384811936,1757568645979,-480.0,0.00014069,2]
[384811938,1757568645988,-488.06345709,0.00014069,2]
[384811940,1757568645999,-400.0,0.00014069,2]
[384811942,1757568646008,-493.01741824,0.00014069,2]
[384811944,1757568646018,-157.46684292,0.00014069,2]
[384811946,1757568646027,-618.68811538,0.00014069,2]
[384811948,1757568646036,-480.0,0.00014069,2]
[384811951,1757568646045,-492.50203336,0.00014069,2]
[384811953,1757568646055,-480.0,0.00014069,2]
[384811955,1757568646065,-231.09469404,0.00014069,2]
[384811957,1757568646074,-480.0,0.00014069,2]
[384811959,1757568646083,-483.14368786,0.00014069,2]
[384811961,1757568646093,-868.52,0.00014069,2]
[384811963,1757568646102,-495.40282588,0.00014069,2]
[384811965,1757568646111,-461.57172666,0.00014069,2]
[384811967,1757568646120,-480.0,0.00014069,2]
[384811969,1757568646130,-480.0,0.00014069,2]
[384811971,1757568646140,-480.0,0.00014069,2]
[384811973,1757568646149,-486.18046519,0.00014069,2]
[384811975,1757568646159,-480.0,0.00014069,2]
[384811977,1757568646168,-480.0,0.00014069,2]
[384811979,1757568646177,-480.0,0.00014069,2]
[384811981,1757568646186,-480.0,0.00014069,2]
[384811983,1757568646195,-481.93,0.00014069,2]
[384811985,1757568646204,-480.0,0.00014069,2]
[384811987,1757568646213,-480.0,0.00014069,2]
[384811989,1757568646222,-481.65420444,0.00014069,2]
[384811991,1757568646231,-480.0,0.00014069,2]
[384811993,1757568646240,-549.11,0.00014069,2]
[384811995,1757568646249,-480.0,0.00014069,2]
[384811997,1757568646259,-484.21252979,0.00014069,2]
[384811999,1757568646268,-480.0,0.00014069,2]
[384812001,1757568646278,-480.0,0.00014069,2]
[384812003,1757568646287,-489.17870123,0.00014069,2]
[384812005,1757568646296,-480.0,0.00014069,2]
[384812015,1757568646305,-480.0,0.00014069,2]
[384812018,1757568646392,-480.0,0.00014069,2]
[384812020,1757568646402,-2151.42,0.00014069,2]
[384812022,1757568646411,-480.0,0.00014069,2]
[384812024,1757568646420,-3384.26,0.00014069,2]
[384812026,1757568646429,-480.0,0.00014069,2]
[384812028,1757568646439,-480.0,0.00014069,2]
[384812030,1757568646448,-480.0,0.00014069,2]
[384812032,1757568646457,-480.0,0.00014168,2]
[384812034,1757568646467,-480.0,0.00014168,2]
[384812036,1757568646476,-370.7611175,0.00014168,2]
[384812038,1757568646485,-485.1450466,0.00014168,2]
[384812040,1757568646495,-480.0,0.00014168,2]
[384812042,1757568646505,-480.0,0.00014168,2]
[384812044,1757568646517,-489.544667,0.00014168,2]
[384812046,1757568646527,-480.0,0.00014168,2]
[384812048,1757568646536,-480.0,0.00014168,2]
[384812050,1757568646545,-485.70951202,0.00014168,2]
[384812052,1757568646557,-414.80746801,0.00014168,2]
[384812054,1757568646568,-480.0,0.00014168,2]
[384812056,1757568646578,-480.0,0.00014168,2]
[384812058,1757568646590,-345.85150171,0.00014168,2]
[384812073,1757568646731,-134.14849829,0.00014168,2]
[384812075,1757568646740,-480.0,0.00014168,2]
[384812077,1757568646750,-480.0,0.00014168,2]
[384812079,1757568646760,-480.0,0.00014168,2]
[384812081,1757568646769,-480.0,0.00014168,2]
[384812083,1757568646778,-480.0,0.00014168,2]
[384812085,1757568646787,-480.0,0.00014168,2]
[384812087,1757568646796,-480.0,0.00014168,2]
[384812089,1757568646805,-480.0,0.00014168,2]
[384812091,1757568646814,-480.0,0.00014168,2]
[384812093,1757568646823,-480.0,0.00014168,2]
[384812095,1757568646833,-480.0,0.00014168,2]
[384812097,1757568646842,-480.0,0.00014168,2]
[384812099,1757568646851,-521.91480768,0.00014168,2]
[384812101,1757568646861,-480.0,0.00014168,2]
[384812103,1757568646870,-459.62403368,0.00014168,2]
[384812105,1757568646880,-481.60293997,0.00014168,2]
[384812107,1757568646889,-605.76302594,0.00014168,2]
[384812109,1757568646900,-480.0,0.00014168,2]
[384812111,1757568646909,-480.0,0.00014168,2]
[384812113,1757568646919,-484.01450246,0.00014168,2]
[384812115,1757568646928,-480.0,0.00014168,2]
[384812117,1757568646937,-21576.84764277,0.00014168,2]
[384812120,1757568646953,-1599.11904583,0.00014168,2]
[384812122,1757568646962,-480.0,0.00014168,2]
[384812124,1757568646971,-480.0,0.00014168,2]
[384812125,1757568646980,-480.0,0.00014168,2]
[384812127,1757568646989,-480.0,0.00014168,2]
[384812129,1757568646999,-480.0,0.00014168,2]
[384812131,1757568647008,-480.0,0.00014168,2]
[384812134,1757568647017,-483.65562775,0.00014168,2]
[384812135,1757568647027,-482.40293605,0.00014168,2]
[384812137,1757568647036,-480.0,0.00014168,2]
[384812140,1757568647046,-487.01836348,0.00014168,2]
[384812141,1757568647055,-480.0,0.00014168,2]
[384812144,1757568647065,-484.75761571,0.00014168,2]
[384812145,1757568647074,-483.10016568,0.00014168,2]
[384812148,1757568647083,-481.97673491,0.00014168,2]
[384812150,1757568647092,-482.52917484,0.00014168,2]
[384812152,1757568647102,-480.0,0.00014168,2]
[384812153,1757568647111,-251.694711,0.00014168,2]
[384812155,1757568647120,-451.3779639,0.00014168,2]
[384812157,1757568647130,-322.38846823,0.00014168,2]
[384812159,1757568647139,-480.0,0.00014168,2]
[384812161,1757568647148,-189.14,0.00014168,2]
[384812163,1757568647157,-480.0,0.00014168,2]
[384812165,1757568647167,-480.0,0.00014168,2]
[384812167,1757568647176,-480.0,0.00014168,2]
[384812170,1757568647187,-480.0,0.00014168,2]
[384812172,1757568647197,-488.13084571,0.00014168,2]
[384812174,1757568647206,-492.7602882,0.00014168,2]
[384812176,1757568647215,-600.86658604,0.00014168,2]
[384812178,1757568647225,-480.0,0.00014168,2]
[384812180,1757568647234,-480.0,0.00014168,2]
[384812182,1757568647243,-480.0,0.00014168,2]
[384812184,1757568647252,-426.32117359,0.00014168,2]
[384812186,1757568647261,-480.0,0.00014168,2]
[384812188,1757568647270,-480.0,0.00014168,2]
[384812190,1757568647279,-480.0,0.00014168,2]
[384812192,1757568647288,-480.0,0.00014168,2]
[384812193,1757568647297,-481.13046401,0.00014168,2]
[384812195,1757568647307,-549.38,0.00014168,2]
[384812197,1757568647316,-484.91587264,0.00014168,2]
[384812200,1757568647326,-483.06228816,0.00014168,2]
[384812202,1757568647335,-480.0,0.00014168,2]
[384812203,1757568647344,-480.0,0.00014168,2]
[384812205,1757568647353,-481.17029771,0.00014168,2]
[384812207,1757568647362,-516.58102096,0.00014168,2]
[384812209,1757568647371,-480.0,0.00014168,2]
[384812211,1757568647380,-480.0,0.00014168,2]
[384812213,1757568647390,-640.63,0.00014168,2]
[384812215,1757568647400,-481.47677,0.00014168,2]
[384812217,1757568647409,-1000.0,0.00014168,2]
[384812219,1757568647419,-461.61542816,0.00014168,2]
[384812221,1757568647429,-480.0,0.00014168,2]
[384812223,1757568647438,-480.87272331,0.00014168,2]
[384812225,1757568647447,-480.0,0.00014168,2]
[384812228,1757568647456,-480.0,0.00014168,2]
[384812229,1757568647466,-480.0,0.00014168,2]
[384812232,1757568647475,-480.0,0.00014168,2]
[384812233,1757568647484,-480.0,0.00014168,2]
[384812235,1757568647494,-219.76359229,0.00014168,2]
[384812237,1757568647503,-480.0,0.00014168,2]
[384812239,1757568647513,-480.0,0.00014168,2]